[Event "*** SCC Grand Prix: Titled Tuesday Blitz"]
[Site "Chess.com"]
[Date "2020.10.06"]
[Round "1"]
[White "yourstrulyme"]
[Black "swimmerchess"]
[Result "0-1"]
[WhiteElo "2417"]
[BlackElo "2809"]
[TimeControl "180+1"]
[EndTime "10:06:48 PDT"]
[Termination "swimmerchess won by resignation"]

1. d4 {[%clk 0:02:59.9]} 1... Nf6 {[%clk 0:02:59.6]} 2. Nf3 {[%clk 0:02:59.7]}
2... g6 {[%clk 0:02:58.9]} 3. Bg5 {[%clk 0:02:59.6]} 3... Bg7 {[%clk 0:02:59]}
4. Nbd2 {[%clk 0:03:00.3]} 4... O-O {[%clk 0:02:59.2]} 5. c3 {[%clk 0:03:00.3]}
5... d6 {[%clk 0:02:12.7]} 6. e4 {[%clk 0:03:00]} 6... c5 {[%clk 0:02:11.9]} 7.
dxc5 {[%clk 0:02:58.7]} 7... dxc5 {[%clk 0:02:12.3]} 8. Bc4 {[%clk 0:02:59.2]}
8... h6 {[%clk 0:02:12]} 9. Bh4 {[%clk 0:02:36.2]} 9... Nc6 {[%clk 0:02:11.5]}
10. Qe2 {[%clk 0:02:35.1]} 10... Nh5 {[%clk 0:02:07.4]} 11. Qe3 {[%clk
0:02:28.7]} 11... b6 {[%clk 0:01:57.6]} 12. O-O {[%clk 0:02:26]} 12... Qc7
{[%clk 0:01:54.1]} 13. Rfe1 {[%clk 0:02:22.4]} 13... g5 {[%clk 0:01:45.7]} 14.
Bg3 {[%clk 0:01:31.7]} 14... Nxg3 {[%clk 0:01:45.3]} 15. hxg3 {[%clk 0:01:32.6]}
15... e6 {[%clk 0:01:46]} 16. e5 {[%clk 0:01:16.5]} 16... Bb7 {[%clk 0:01:44]}
17. Bd3 {[%clk 0:01:11.7]} 17... Ne7 {[%clk 0:01:36.3]} 18. Ne4 {[%clk
0:01:02.1]} 18... Nf5 {[%clk 0:00:43.2]} 19. Qe2 {[%clk 0:00:40.3]} 19... Rad8
{[%clk 0:00:35.9]} 20. g4 {[%clk 0:00:34.5]} 20... Ne7 {[%clk 0:00:30.4]} 21.
Rad1 {[%clk 0:00:27.4]} 21... Ng6 {[%clk 0:00:28.5]} 22. Nf6+ {[%clk 0:00:14.8]}
22... Bxf6 {[%clk 0:00:28.2]} 23. Bxg6 {[%clk 0:00:13.6]} 23... Rxd1 {[%clk
0:00:28.5]} 24. Qxd1 {[%clk 0:00:02]} 24... Bxf3 {[%clk 0:00:27.9]} 25. exf6
{[%clk 0:00:02.3]} 25... Bxd1 {[%clk 0:00:27.7]} 26. Rxd1 {[%clk 0:00:01.1]}
26... fxg6 {[%clk 0:00:27.8]} 0-1

[Event "*** SCC Grand Prix: Titled Tuesday Blitz"]
[Site "Chess.com"]
[Date "2020.10.06"]
[Round "1"]
[White "VladimirBugayev"]
[Black "NewBornNow"]
[Result "0-1"]
[WhiteElo "2313"]
[BlackElo "2628"]
[TimeControl "180+1"]
[EndTime "10:06:48 PDT"]
[Termination "NewBornNow won on time"]

1. e4 {[%clk 0:03:00.9]} 1... c5 {[%clk 0:02:59.5]} 2. a3 {[%clk 0:02:59.8]}
2... Nf6 {[%clk 0:02:57.7]} 3. e5 {[%clk 0:02:58.9]} 3... Nd5 {[%clk 0:02:57.7]}
4. Nc3 {[%clk 0:02:58.2]} 4... Nxc3 {[%clk 0:02:57.7]} 5. dxc3 {[%clk
0:02:58.3]} 5... Nc6 {[%clk 0:02:57.6]} 6. Nf3 {[%clk 0:02:56]} 6... Qc7 {[%clk
0:02:57.5]} 7. Bf4 {[%clk 0:02:51.6]} 7... f6 {[%clk 0:02:55.6]} 8. Qe2 {[%clk
0:02:45.9]} 8... fxe5 {[%clk 0:02:54.5]} 9. Nxe5 {[%clk 0:02:42.2]} 9... Nxe5
{[%clk 0:02:52.5]} 10. Bxe5 {[%clk 0:02:42]} 10... d6 {[%clk 0:02:52.3]} 11. Bg3
{[%clk 0:02:41.9]} 11... Bf5 {[%clk 0:02:51.5]} 12. O-O-O {[%clk 0:02:34.2]}
12... O-O-O {[%clk 0:02:49.7]} 13. Qf3 {[%clk 0:02:23.7]} 13... g6 {[%clk
0:02:41.7]} 14. Bd3 {[%clk 0:02:23.6]} 14... Qd7 {[%clk 0:02:38.9]} 15. h3
{[%clk 0:02:11.3]} 15... Bh6+ {[%clk 0:02:37.3]} 16. Kb1 {[%clk 0:02:09.9]}
16... Rhf8 {[%clk 0:02:35.7]} 17. Qe2 {[%clk 0:02:10.5]} 17... e5 {[%clk
0:02:24.5]} 18. Bc4 {[%clk 0:02:01.7]} 18... Qc7 {[%clk 0:02:15.9]} 19. Bd5
{[%clk 0:02:00.5]} 19... Kb8 {[%clk 0:02:15.4]} 20. c4 {[%clk 0:01:51.5]} 20...
Bg7 {[%clk 0:02:08.7]} 21. Bh4 {[%clk 0:01:50]} 21... Rde8 {[%clk 0:02:07.3]}
22. f3 {[%clk 0:01:42.8]} 22... Qb6 {[%clk 0:02:05.1]} 23. Be4 {[%clk
0:01:28.2]} 23... Bxe4 {[%clk 0:02:04.2]} 24. fxe4 {[%clk 0:01:17.3]} 24... Qc6
{[%clk 0:02:03.9]} 25. Bg5 {[%clk 0:01:11.4]} 25... h6 {[%clk 0:01:51.4]} 26.
Bc1 {[%clk 0:01:08]} 26... Rf6 {[%clk 0:01:51]} 27. Rd3 {[%clk 0:00:57.7]} 27...
Ref8 {[%clk 0:01:50.1]} 28. Rhd1 {[%clk 0:00:58.3]} 28... R8f7 {[%clk
0:01:47.7]} 29. Rd5 {[%clk 0:00:49.1]} 29... Bf8 {[%clk 0:01:44.4]} 30. Be3
{[%clk 0:00:44.9]} 30... a6 {[%clk 0:01:41.2]} 31. b3 {[%clk 0:00:41.2]} 31...
Qc8 {[%clk 0:01:37.5]} 32. a4 {[%clk 0:00:38.7]} 32... g5 {[%clk 0:01:34.4]} 33.
Qh5 {[%clk 0:00:36.9]} 33... Rf1 {[%clk 0:01:31.4]} 34. Kb2 {[%clk 0:00:35.1]}
34... Qe6 {[%clk 0:01:28.7]} 35. Rxf1 {[%clk 0:00:28.7]} 35... Rxf1 {[%clk
0:01:27.5]} 36. Rd1 {[%clk 0:00:29.2]} 36... Rf6 {[%clk 0:01:24.4]} 37. Rd2
{[%clk 0:00:23.7]} 37... Bg7 {[%clk 0:01:17.8]} 38. Qd1 {[%clk 0:00:14.5]} 38...
Kc7 {[%clk 0:01:15.9]} 39. Qh5 {[%clk 0:00:13.7]} 39... Rf4 {[%clk 0:01:14.1]}
40. Qd1 {[%clk 0:00:08.3]} 40... Rxe4 {[%clk 0:01:11.9]} 41. Qf3 {[%clk
0:00:05.8]} 41... Qg6 {[%clk 0:01:08.1]} 42. c3 {[%clk 0:00:04.1]} 42... g4
{[%clk 0:01:03]} 43. hxg4 {[%clk 0:00:01.7]} 43... Rxg4 {[%clk 0:01:01.6]} 0-1

[Event "*** SCC Grand Prix: Titled Tuesday Blitz"]
[Site "Chess.com"]
[Date "2020.10.06"]
[Round "1"]
[White "KikaLaurincova"]
[Black "renehp"]
[Result "0-1"]
[WhiteElo "1938"]
[BlackElo "2484"]
[TimeControl "180+1"]
[EndTime "10:06:48 PDT"]
[Termination "renehp won on time"]

1. e4 {[%clk 0:02:56.9]} 1... d5 {[%clk 0:02:59.9]} 2. exd5 {[%clk 0:02:56.3]}
2... Nf6 {[%clk 0:02:59]} 3. d4 {[%clk 0:02:55.7]} 3... Qxd5 {[%clk 0:02:57.8]}
4. Nf3 {[%clk 0:02:54.4]} 4... Bg4 {[%clk 0:02:57]} 5. Nbd2 {[%clk 0:02:52.1]}
5... Nc6 {[%clk 0:02:46.6]} 6. Bc4 {[%clk 0:02:49.5]} 6... Bxf3 {[%clk
0:02:36.3]} 7. Qxf3 {[%clk 0:02:45.7]} 7... Qxd4 {[%clk 0:02:23.6]} 8. O-O
{[%clk 0:02:33.9]} 8... e6 {[%clk 0:02:21.3]} 9. Bb5 {[%clk 0:02:11.4]} 9... Qb6
{[%clk 0:02:19.7]} 10. a4 {[%clk 0:02:09.4]} 10... Be7 {[%clk 0:02:04.9]} 11.
Nc4 {[%clk 0:02:08.2]} 11... Qc5 {[%clk 0:02:04]} 12. Be3 {[%clk 0:01:57.8]}
12... Qd5 {[%clk 0:02:03.5]} 13. Bxc6+ {[%clk 0:01:42]} 13... bxc6 {[%clk
0:01:59.2]} 14. Qe2 {[%clk 0:01:31.4]} 14... O-O {[%clk 0:01:56.8]} 15. Rfd1
{[%clk 0:01:31]} 15... Qf5 {[%clk 0:01:56.2]} 16. Bd4 {[%clk 0:01:10]} 16...
Rfd8 {[%clk 0:01:51.2]} 17. Ne5 {[%clk 0:01:06.9]} 17... Rd6 {[%clk 0:01:37.4]}
18. Qc4 {[%clk 0:00:45.4]} 18... Rad8 {[%clk 0:01:18.4]} 19. Nxc6 {[%clk
0:00:44.3]} 19... R8d7 {[%clk 0:00:59.2]} 20. Nxe7+ {[%clk 0:00:40.1]} 20...
Rxe7 {[%clk 0:01:00.1]} 21. Bxa7 {[%clk 0:00:15.7]} 21... h6 {[%clk 0:00:54.2]}
22. Bc5 {[%clk 0:00:09.8]} 22... Rxd1+ {[%clk 0:00:48.1]} 23. Rxd1 {[%clk
0:00:10.7]} 23... Re8 {[%clk 0:00:48.7]} 24. a5 {[%clk 0:00:10.1]} 24... Ne4
{[%clk 0:00:47.4]} 25. Be3 {[%clk 0:00:08.5]} 25... Nd6 {[%clk 0:00:46.4]} 26.
Qc5 {[%clk 0:00:07.5]} 26... Qg4 {[%clk 0:00:43.2]} 27. Ra1 {[%clk 0:00:05.5]}
27... Ne4 {[%clk 0:00:39.2]} 28. a6 {[%clk 0:00:04.2]} 28... Nxc5 {[%clk
0:00:38.1]} 29. Bxc5 {[%clk 0:00:05.1]} 29... Qc4 {[%clk 0:00:37.8]} 30. Be3
{[%clk 0:00:03.4]} 30... Ra8 {[%clk 0:00:38.1]} 31. a7 {[%clk 0:00:03.2]} 31...
c5 {[%clk 0:00:38.5]} 32. c3 {[%clk 0:00:01.1]} 32... Qb5 {[%clk 0:00:38.4]} 0-1

[Event "*** SCC Grand Prix: Titled Tuesday Blitz"]
[Site "Chess.com"]
[Date "2020.10.06"]
[Round "1"]
[White "gross-aleks"]
[Black "Blagorod"]
[Result "0-1"]
[WhiteElo "2512"]
[BlackElo "2182"]
[TimeControl "180+1"]
[EndTime "10:06:49 PDT"]
[Termination "Blagorod won by checkmate"]

1. c4 {[%clk 0:03:00.9]} 1... e5 {[%clk 0:02:59.1]} 2. Nc3 {[%clk 0:02:58.6]}
2... d6 {[%clk 0:02:59.6]} 3. g3 {[%clk 0:02:58.4]} 3... Be6 {[%clk 0:02:59.9]}
4. Bg2 {[%clk 0:02:57]} 4... Nc6 {[%clk 0:02:59.1]} 5. Nd5 {[%clk 0:02:56.4]}
5... Nf6 {[%clk 0:02:52.3]} 6. b4 {[%clk 0:02:54]} 6... Qd7 {[%clk 0:02:50.3]}
7. Nxf6+ {[%clk 0:02:51.1]} 7... gxf6 {[%clk 0:02:50]} 8. b5 {[%clk 0:02:50.8]}
8... Nd8 {[%clk 0:02:47.5]} 9. d3 {[%clk 0:02:50.4]} 9... d5 {[%clk 0:02:40]}
10. Rb1 {[%clk 0:02:45.4]} 10... dxc4 {[%clk 0:02:37]} 11. dxc4 {[%clk
0:02:42.5]} 11... Qxd1+ {[%clk 0:02:36]} 12. Kxd1 {[%clk 0:02:43.4]} 12... Bxc4
{[%clk 0:02:34.6]} 13. Nf3 {[%clk 0:02:41.2]} 13... Bxa2 {[%clk 0:02:31.8]} 14.
Rb2 {[%clk 0:02:37.1]} 14... Be6 {[%clk 0:02:22.8]} 15. Nd2 {[%clk 0:02:33.6]}
15... Ba3 {[%clk 0:02:16]} 16. Rc2 {[%clk 0:02:32.7]} 16... Bxc1 {[%clk
0:02:13.7]} 17. Kxc1 {[%clk 0:02:33.6]} 17... c6 {[%clk 0:01:55.2]} 18. Ne4
{[%clk 0:02:31.8]} 18... Ke7 {[%clk 0:01:43.1]} 19. bxc6 {[%clk 0:02:25.3]}
19... Nxc6 {[%clk 0:01:40.4]} 20. Nc5 {[%clk 0:02:25.5]} 20... Nd4 {[%clk
0:01:34.8]} 21. Nxe6 {[%clk 0:02:24.6]} 21... Nxc2 {[%clk 0:01:20.7]} 22. Nc7
{[%clk 0:02:23.2]} 22... Rac8 {[%clk 0:01:16.9]} 23. Nd5+ {[%clk 0:02:23.4]}
23... Ke6 {[%clk 0:01:11.6]} 24. Kb2 {[%clk 0:02:21.9]} 24... Nd4 {[%clk
0:01:07.6]} 25. Nc3 {[%clk 0:02:20.6]} 25... Rhd8 {[%clk 0:00:57.7]} 26. e3
{[%clk 0:02:19.5]} 26... Ne2 {[%clk 0:00:47.3]} 27. Bh3+ {[%clk 0:02:10]} 27...
f5 {[%clk 0:00:46]} 28. Ne4 {[%clk 0:02:10.4]} 28... Rc4 {[%clk 0:00:26.8]} 29.
f3 {[%clk 0:01:58.1]} 29... Rb4+ {[%clk 0:00:22]} 30. Ka3 {[%clk 0:01:44.9]}
30... a5 {[%clk 0:00:20.4]} 31. Re1 {[%clk 0:01:43.8]} 31... Rd3+ {[%clk
0:00:19.7]} 32. Ka2 {[%clk 0:01:43.1]} 32... Nc3+ {[%clk 0:00:19.9]} 33. Nxc3
{[%clk 0:01:36.8]} 33... Rxc3 {[%clk 0:00:20.2]} 34. e4 {[%clk 0:01:37.7]} 34...
Rc2+ {[%clk 0:00:19.4]} 35. Ka3 {[%clk 0:01:37.4]} 35... Rxh2 {[%clk 0:00:19.6]}
36. Bxf5+ {[%clk 0:01:36.8]} 36... Kf6 {[%clk 0:00:19.4]} 37. Rd1 {[%clk
0:01:36.4]} 37... Rc2 {[%clk 0:00:17.5]} 38. f4 {[%clk 0:01:34.3]} 38... exf4
{[%clk 0:00:16.5]} 39. gxf4 {[%clk 0:01:35.2]} 39... Rc3+ {[%clk 0:00:16.2]} 40.
Ka2 {[%clk 0:01:34.1]} 40... Rf3 {[%clk 0:00:15.8]} 41. Rd6+ {[%clk 0:01:33.1]}
41... Kg7 {[%clk 0:00:15.9]} 42. e5 {[%clk 0:01:20.6]} 42... Rfxf4 {[%clk
0:00:14.8]} 43. Bd7 {[%clk 0:01:21.5]} 43... Rf2+ {[%clk 0:00:14]} 44. Ka3
{[%clk 0:01:21.2]} 44... Rf3+ {[%clk 0:00:14.4]} 45. Ka2 {[%clk 0:01:20.8]}
45... Re4 {[%clk 0:00:14.7]} 46. e6 {[%clk 0:01:18.8]} 46... Re2+ {[%clk
0:00:14.5]} 47. Kb1 {[%clk 0:01:17.9]} 47... Rf1+ {[%clk 0:00:14.3]} 48. Rd1
{[%clk 0:01:14.5]} 48... Rxd1# {[%clk 0:00:14.4]} 0-1

[Event "*** SCC Grand Prix: Titled Tuesday Blitz"]
[Site "Chess.com"]
[Date "2020.10.06"]
[Round "1"]
[White "pfalcon1949"]
[Black "GM_LOADING"]
[Result "0-1"]
[WhiteElo "2018"]
[BlackElo "2493"]
[TimeControl "180+1"]
[EndTime "10:06:51 PDT"]
[Termination "GM_LOADING won by checkmate"]

1. c4 {[%clk 0:02:57.6]} 1... e6 {[%clk 0:02:59.6]} 2. e4 {[%clk 0:02:51.4]}
2... c5 {[%clk 0:02:58.8]} 3. Nc3 {[%clk 0:02:51]} 3... Nc6 {[%clk 0:02:58.7]}
4. g3 {[%clk 0:02:49.8]} 4... g6 {[%clk 0:02:56.8]} 5. Bg2 {[%clk 0:02:49.7]}
5... Bg7 {[%clk 0:02:56.6]} 6. Nge2 {[%clk 0:02:49.9]} 6... Nge7 {[%clk
0:02:56.5]} 7. O-O {[%clk 0:02:49.4]} 7... O-O {[%clk 0:02:57]} 8. d3 {[%clk
0:02:48.9]} 8... d6 {[%clk 0:02:57.4]} 9. a3 {[%clk 0:02:40.5]} 9... Rb8 {[%clk
0:02:54.5]} 10. Rb1 {[%clk 0:02:39.3]} 10... a6 {[%clk 0:02:53.1]} 11. b4 {[%clk
0:02:39.1]} 11... cxb4 {[%clk 0:02:51.7]} 12. axb4 {[%clk 0:02:39.2]} 12... b5
{[%clk 0:02:52.5]} 13. cxb5 {[%clk 0:02:34.7]} 13... axb5 {[%clk 0:02:53.4]} 14.
d4 {[%clk 0:02:29.1]} 14... Qb6 {[%clk 0:02:36.4]} 15. Be3 {[%clk 0:02:26.1]}
15... Qb7 {[%clk 0:02:35.6]} 16. f4 {[%clk 0:02:16.4]} 16... d5 {[%clk 0:01:43]}
17. e5 {[%clk 0:02:08.9]} 17... Bd7 {[%clk 0:01:24.7]} 18. Qd2 {[%clk
0:02:08.5]} 18... Ra8 {[%clk 0:01:24.1]} 19. Nd1 {[%clk 0:02:00.5]} 19... Ra4
{[%clk 0:01:10]} 20. Nf2 {[%clk 0:01:59.2]} 20... Rfa8 {[%clk 0:01:00.8]} 21.
Nd3 {[%clk 0:01:58.7]} 21... Ra2 {[%clk 0:00:59.5]} 22. Qe1 {[%clk 0:01:57.5]}
22... Be8 {[%clk 0:00:40.8]} 23. Nc5 {[%clk 0:01:55.8]} 23... Qa7 {[%clk
0:00:37]} 24. Nc3 {[%clk 0:01:48.4]} 24... Rc2 {[%clk 0:00:27.7]} 25. Nxb5
{[%clk 0:01:43.4]} 25... Qa2 {[%clk 0:00:20.1]} 26. Rf2 {[%clk 0:01:42.8]} 26...
Rxf2 {[%clk 0:00:18.3]} 27. Bxf2 {[%clk 0:01:42.7]} 27... Nxe5 {[%clk
0:00:18.5]} 28. dxe5 {[%clk 0:01:32.9]} 28... Bxb5 {[%clk 0:00:17.9]} 29. Bf1
{[%clk 0:01:25.4]} 29... Bxf1 {[%clk 0:00:17.2]} 30. Qxf1 {[%clk 0:01:26.3]}
30... Bf8 {[%clk 0:00:10.7]} 31. Bd4 {[%clk 0:01:24.1]} 31... Qc4 {[%clk
0:00:06.3]} 32. Qxc4 {[%clk 0:01:23.2]} 32... dxc4 {[%clk 0:00:07.2]} 33. b5
{[%clk 0:01:23]} 33... Nf5 {[%clk 0:00:07.5]} 34. Bf2 {[%clk 0:01:21.5]} 34...
c3 {[%clk 0:00:07.4]} 35. b6 {[%clk 0:01:17.5]} 35... Rb8 {[%clk 0:00:02.8]} 36.
b7 {[%clk 0:01:16.6]} 36... Bxc5 {[%clk 0:00:02.3]} 37. Rc1 {[%clk 0:01:16.8]}
37... Bxf2+ {[%clk 0:00:02.1]} 38. Kxf2 {[%clk 0:01:17.2]} 38... Rxb7 {[%clk
0:00:03]} 39. Rxc3 {[%clk 0:01:16.4]} 39... h5 {[%clk 0:00:03.6]} 40. Rc2 {[%clk
0:01:15.9]} 40... Rb3 {[%clk 0:00:03.6]} 41. Kg2 {[%clk 0:01:16.6]} 41... Ne3+
{[%clk 0:00:03.6]} 42. Kh3 {[%clk 0:01:16.1]} 42... Nxc2 {[%clk 0:00:04.5]} 43.
Kh4 {[%clk 0:01:16.7]} 43... Nd4 {[%clk 0:00:04.6]} 44. Kg5 {[%clk 0:01:17.6]}
44... Rb2 {[%clk 0:00:03.5]} 45. Kf6 {[%clk 0:01:18.5]} 45... Rxh2 {[%clk
0:00:03]} 46. Ke7 {[%clk 0:01:17.4]} 46... Kg7 {[%clk 0:00:02]} 47. Kd6 {[%clk
0:01:18.3]} 47... Nf5+ {[%clk 0:00:02.6]} 48. Kd7 {[%clk 0:01:18.1]} 48... h4
{[%clk 0:00:03.5]} 49. Kc6 {[%clk 0:01:18.3]} 49... hxg3 {[%clk 0:00:04.4]} 50.
Kc5 {[%clk 0:01:17.5]} 50... g2 {[%clk 0:00:05.3]} 51. Kc4 {[%clk 0:01:18.2]}
51... g1=Q {[%clk 0:00:06.2]} 52. Kc3 {[%clk 0:01:19.1]} 52... Qe3+ {[%clk
0:00:06]} 53. Kb4 {[%clk 0:01:19.2]} 53... Rc2 {[%clk 0:00:06.6]} 54. Kb5 {[%clk
0:01:19.1]} 54... Qb3+ {[%clk 0:00:06.9]} 55. Ka6 {[%clk 0:01:18.4]} 55... Ra2#
{[%clk 0:00:07.8]} 0-1

[Event "*** SCC Grand Prix: Titled Tuesday Blitz"]
[Site "Chess.com"]
[Date "2020.10.06"]
[Round "1"]
[White "anasta10"]
[Black "MoreChessJulia"]
[Result "1-0"]
[WhiteElo "2485"]
[BlackElo "1941"]
[TimeControl "180+1"]
[EndTime "10:06:51 PDT"]
[Termination "anasta10 won on time"]

1. d4 {[%clk 0:03:00.9]} 1... g6 {[%clk 0:02:59.6]} 2. Nf3 {[%clk 0:03:01.6]}
2... Bg7 {[%clk 0:02:59.3]} 3. c4 {[%clk 0:03:02.2]} 3... c5 {[%clk 0:02:57.4]}
4. d5 {[%clk 0:02:56.9]} 4... d6 {[%clk 0:02:57]} 5. Nc3 {[%clk 0:02:57.4]} 5...
Bg4 {[%clk 0:02:55]} 6. e4 {[%clk 0:02:57.1]} 6... Nd7 {[%clk 0:02:53.8]} 7. Be2
{[%clk 0:02:57.2]} 7... Ngf6 {[%clk 0:02:51.2]} 8. O-O {[%clk 0:02:51.1]} 8...
O-O {[%clk 0:02:48.5]} 9. h3 {[%clk 0:02:51.2]} 9... Bxf3 {[%clk 0:02:47.8]} 10.
Bxf3 {[%clk 0:02:52.1]} 10... Ne5 {[%clk 0:02:47.5]} 11. Be2 {[%clk 0:02:52.6]}
11... e6 {[%clk 0:02:47.5]} 12. f4 {[%clk 0:02:52.8]} 12... Ned7 {[%clk
0:02:45]} 13. Bf3 {[%clk 0:02:49.9]} 13... e5 {[%clk 0:02:43.5]} 14. f5 {[%clk
0:02:48.6]} 14... h6 {[%clk 0:02:40.5]} 15. Rb1 {[%clk 0:02:46.8]} 15... a6
{[%clk 0:02:39.1]} 16. a3 {[%clk 0:02:46.4]} 16... gxf5 {[%clk 0:02:29.5]} 17.
exf5 {[%clk 0:02:20.6]} 17... Re8 {[%clk 0:02:28.3]} 18. g4 {[%clk 0:02:20.2]}
18... e4 {[%clk 0:02:23.8]} 19. Bg2 {[%clk 0:02:20.4]} 19... Ne5 {[%clk
0:02:21.9]} 20. Qe2 {[%clk 0:02:19.5]} 20... Nd3 {[%clk 0:02:14.2]} 21. b4
{[%clk 0:02:09.6]} 21... cxb4 {[%clk 0:02:06.4]} 22. axb4 {[%clk 0:02:10.5]}
22... Rc8 {[%clk 0:02:06.2]} 23. Qa2 {[%clk 0:02:00.5]} 23... e3 {[%clk
0:01:58.8]} 24. Ne2 {[%clk 0:01:51.4]} 24... Nxc1 {[%clk 0:01:54.4]} 25. Rbxc1
{[%clk 0:01:51]} 25... Ne4 {[%clk 0:01:53.8]} 26. Rf4 {[%clk 0:01:39.8]} 26...
Nd2 {[%clk 0:01:34.3]} 27. c5 {[%clk 0:01:39.7]} 27... Be5 {[%clk 0:01:24.4]}
28. Rf3 {[%clk 0:01:37.4]} 28... Nxf3+ {[%clk 0:01:23.7]} 29. Bxf3 {[%clk
0:01:38.3]} 29... Qh4 {[%clk 0:01:22.1]} 30. Bg2 {[%clk 0:01:28.8]} 30... Qf2+
{[%clk 0:01:20.9]} 31. Kh1 {[%clk 0:01:28.8]} 31... Kg7 {[%clk 0:00:45.3]} 32.
Rf1 {[%clk 0:01:26.7]} 32... Qh4 {[%clk 0:00:41]} 33. Qc2 {[%clk 0:01:22.4]}
33... f6 {[%clk 0:00:37.9]} 34. c6 {[%clk 0:01:21.4]} 34... b5 {[%clk
0:00:34.4]} 35. Qa2 {[%clk 0:01:20]} 35... h5 {[%clk 0:00:29.9]} 36. gxh5 {[%clk
0:01:15.6]} 36... Qxh5 {[%clk 0:00:26.1]} 37. Ng1 {[%clk 0:00:56.6]} 37... Bd4
{[%clk 0:00:05.7]} 38. Nf3 {[%clk 0:00:50.7]} 1-0

[Event "*** SCC Grand Prix: Titled Tuesday Blitz"]
[Site "Chess.com"]
[Date "2020.10.06"]
[Round "1"]
[White "venus02"]
[Black "zurzan"]
[Result "1-0"]
[WhiteElo "2481"]
[BlackElo "1919"]
[TimeControl "180+1"]
[EndTime "10:06:51 PDT"]
[Termination "venus02 won by resignation"]

1. e4 {[%clk 0:03:00.4]} 1... Nf6 {[%clk 0:02:58.9]} 2. e5 {[%clk 0:03:00.1]}
2... Nd5 {[%clk 0:02:58.7]} 3. d4 {[%clk 0:03:00]} 3... d6 {[%clk 0:02:58.4]} 4.
Nf3 {[%clk 0:02:57.9]} 4... g6 {[%clk 0:02:57.6]} 5. Bc4 {[%clk 0:02:56.1]} 5...
Nb6 {[%clk 0:02:57]} 6. Bb3 {[%clk 0:02:55.9]} 6... Bg7 {[%clk 0:02:57.1]} 7.
Qe2 {[%clk 0:02:52.6]} 7... O-O {[%clk 0:02:56.5]} 8. O-O {[%clk 0:02:51.7]}
8... d5 {[%clk 0:02:55]} 9. h3 {[%clk 0:02:50]} 9... e6 {[%clk 0:02:52.9]} 10.
Re1 {[%clk 0:02:36.7]} 10... Bd7 {[%clk 0:02:52.7]} 11. Nbd2 {[%clk 0:02:34.9]}
11... a6 {[%clk 0:02:52.8]} 12. a4 {[%clk 0:02:31.9]} 12... Nc6 {[%clk
0:02:51.3]} 13. c3 {[%clk 0:02:30.1]} 13... Na5 {[%clk 0:02:50.1]} 14. Bc2
{[%clk 0:02:29.9]} 14... Nac4 {[%clk 0:02:50.2]} 15. Nxc4 {[%clk 0:02:29.2]}
15... Nxc4 {[%clk 0:02:49.9]} 16. b3 {[%clk 0:02:27.2]} 16... Nb6 {[%clk
0:02:47.8]} 17. Bg5 {[%clk 0:02:23.5]} 17... f6 {[%clk 0:02:43.5]} 18. exf6
{[%clk 0:02:22.5]} 18... Bxf6 {[%clk 0:02:43.8]} 19. Bxf6 {[%clk 0:02:21.5]}
19... Qxf6 {[%clk 0:02:43.7]} 20. Ne5 {[%clk 0:02:20.8]} 20... Be8 {[%clk
0:02:39]} 21. Qe3 {[%clk 0:02:15.7]} 21... Nd7 {[%clk 0:02:20.8]} 22. Ng4 {[%clk
0:02:14.7]} 22... Qg7 {[%clk 0:01:42.7]} 23. Qxe6+ {[%clk 0:02:12]} 23... Kh8
{[%clk 0:01:40.6]} 24. Qe3 {[%clk 0:02:00.5]} 24... Nf6 {[%clk 0:01:37.1]} 25.
Ne5 {[%clk 0:01:53]} 25... Nh5 {[%clk 0:01:23.9]} 26. g3 {[%clk 0:01:52.5]}
26... Bd7 {[%clk 0:01:06.2]} 27. h4 {[%clk 0:01:48.6]} 27... Bf5 {[%clk
0:00:49.7]} 28. Bd1 {[%clk 0:01:40.4]} 28... Nf6 {[%clk 0:00:48]} 29. f3 {[%clk
0:01:36]} 29... h6 {[%clk 0:00:44.2]} 30. Be2 {[%clk 0:01:33.8]} 30... g5 {[%clk
0:00:43.8]} 31. hxg5 {[%clk 0:01:32.5]} 31... hxg5 {[%clk 0:00:43.9]} 32. g4
{[%clk 0:01:30.9]} 32... Bc2 {[%clk 0:00:39.3]} 33. Bd1 {[%clk 0:01:06.7]} 33...
Bxd1 {[%clk 0:00:38.8]} 34. Raxd1 {[%clk 0:01:06.4]} 34... Qh6 {[%clk
0:00:34.1]} 35. Rd2 {[%clk 0:01:05.2]} 35... Nh7 {[%clk 0:00:29.3]} 36. Rh2
{[%clk 0:01:03.4]} 36... Qf6 {[%clk 0:00:27.7]} 37. Kg2 {[%clk 0:01:01.5]} 37...
Rg8 {[%clk 0:00:19.3]} 38. Reh1 {[%clk 0:00:59.9]} 38... Rg7 {[%clk 0:00:19.1]}
39. Rh6 {[%clk 0:00:56.8]} 39... Qf7 {[%clk 0:00:18.4]} 40. Nxf7+ {[%clk
0:00:56]} 40... Rxf7 {[%clk 0:00:18.3]} 41. Qe5+ {[%clk 0:00:51.5]} 41... Kg8
{[%clk 0:00:17.8]} 42. Rg6+ {[%clk 0:00:51.6]} 42... Kf8 {[%clk 0:00:17.5]} 43.
Qh8+ {[%clk 0:00:51.4]} 43... Ke7 {[%clk 0:00:16.9]} 44. Qxa8 {[%clk 0:00:52.1]}
1-0